fUST/lending_fUST_20260226
["ID","MTS","AMOUNT","RATE_DAILY","PERIOD"]
[406683147,1772075439113,-301.1433787,0.00016393,2]
[406683148,1772075439122,-250.0,0.00016393,2]
[406683149,1772075439132,-500.0,0.00016393,2]
[406683150,1772075439142,-250.0,0.00016393,2]
[406683151,1772075439152,-250.0,0.00016393,2]
[406683152,1772075439161,-250.0,0.00016393,2]
[406683153,1772075439170,-500.0,0.00016393,2]
[406683154,1772075439180,-500.0,0.00016393,2]
[406683155,1772075439189,-250.0,0.00016393,2]
[406683156,1772075439199,-250.0,0.00016393,2]
[406683157,1772075439208,-250.0,0.00016393,2]
[406683158,1772075439218,-500.0,0.00016393,2]
[406683159,1772075439227,-250.0,0.00016393,2]
[406683160,1772075439237,-250.0,0.00016393,2]
[406683161,1772075439246,-250.0,0.00016393,2]
[406683162,1772075439256,-500.0,0.00016393,2]
[406683163,1772075439265,-250.0,0.00016393,2]
[406683164,1772075439275,-250.0,0.00016393,2]
[406683165,1772075439284,-250.0,0.00016393,2]
[406683166,1772075439294,-500.0,0.00016393,2]
[406683167,1772075439303,-250.0,0.00016393,2]
[406683168,1772075439313,-250.0,0.00016393,2]
[406683169,1772075439321,-250.0,0.00016393,2]
[406683170,1772075439331,-500.0,0.00016393,2]
[406683171,1772075439340,-250.0,0.00016393,2]
[406683172,1772075439350,-250.0,0.00016393,2]
[406683173,1772075439360,-500.0,0.00016393,2]
[406683174,1772075439369,-250.0,0.00016393,2]
[406683175,1772075439383,-500.0,0.00016393,2]
[406683176,1772075439392,-250.0,0.00016393,2]
[406683177,1772075439402,-250.0,0.00016393,2]
[406683178,1772075439411,-500.0,0.00016393,2]
[406683179,1772075439422,-250.0,0.00016393,2]
[406683180,1772075439431,-500.0,0.00016393,2]
[406683181,1772075439440,-323.89797777,0.00016393,2]
[406683182,1772075439451,-500.0,0.00016393,2]
[406683183,1772075439460,-500.0,0.00016393,2]
[406683184,1772075439469,-500.0,0.00016393,2]
[406683185,1772075439479,-500.0,0.00016393,2]
[406683186,1772075439488,-503.8794278,0.00016746,2]
[406683187,1772075439497,-1398.2589907,0.00016926,2]
[406683188,1772075439506,-2674.60743027,0.00016941,2]
[406683189,1772075439518,-529.23761239,0.00017327,5]
[406683190,1772075439527,-2773.56790519,0.00017489,2]
[406683191,1772075439537,-262.77931712,0.00017655,5]
[406683192,1772075439547,-300.0,0.00017699,2]
[406683193,1772075439556,-20966.73663375,0.000177,2]
[406683194,1772075439663,-890.43959189,0.000177,2]
[406683195,1772075439675,-6101.61462282,0.000177,2]
[406683196,1772075439684,-151.0,0.000177,2]
[406683197,1772075439693,-151.0,0.000177,2]
[406683198,1772075439702,-151.0,0.000177,2]
[406683199,1772075439712,-1433.200288,0.000177,2]
[406683200,1772075439722,-1433.200288,0.000177,2]
[406683201,1772075439731,-1433.200288,0.000177,2]
[406683202,1772075439741,-1433.200288,0.000177,2]
[406683203,1772075439751,-151.0,0.000177,2]
[406683204,1772075439760,-500.0,0.00017713,2]
[406683205,1772075439770,-1054.0,0.00017722,2]
[406683206,1772075439780,-195.3447218,0.00017762,2]
[406683207,1772075439789,-150.0,0.00017808,2]
[406683208,1772075439799,-160.0,0.00017849,3]
[406683209,1772075439808,-571.63112256,0.00017899,2]
[406683210,1772075439817,-165.0,0.000179,2]
[406683211,1772075439827,-165.0,0.000179,2]
[406683212,1772075439836,-166.0,0.000179,2]
[406683213,1772075439846,-500.0,0.00017989,2]
[406683214,1772075439859,-500.0,0.00017989,2]
[406683215,1772075439869,-33761.97474829,0.00017997,2]
[406683216,1772075439879,-446.92529836,0.00017999,2]
[406683217,1772075439888,-300.0,0.00018,2]
[406683218,1772075439898,-160.44,0.00018,2]
[406683219,1772075439908,-300.0,0.00018,3]
[406683220,1772075439918,-151.0,0.00018,2]
[406683221,1772075439927,-151.0,0.00018,2]
[406683222,1772075439937,-300.0,0.00018,2]
[406683223,1772075439947,-300.0,0.00018,2]
[406683224,1772075439956,-300.0,0.00018,2]
[406683225,1772075439966,-300.0,0.00018,2]
[406683226,1772075439975,-151.0,0.00018,2]
[406683227,1772075439985,-151.0,0.00018,2]
[406683229,1772075439996,-151.0,0.00018,2]
[406683230,1772075440005,-1433.200288,0.00018,2]
[406683231,1772075440015,-1433.200288,0.00018,2]
[406683233,1772075440026,-1433.200288,0.00018,2]
[406683235,1772075440036,-1433.200288,0.00018,2]
[406683236,1772075440046,-151.0,0.00018,2]
[406683237,1772075440055,-18213.90363736,0.00018,2]
[406683239,1772075440075,-62547.56078238,0.00018,2]
[406683566,1772075443387,-1179.67946753,0.00017227,2]
[406683569,1772075443399,-351.28357357,0.00017227,2]
[406683571,1772075443408,-250.0,0.00017842,2]
[406683573,1772075443419,-2654.94972734,0.00018,2]
[406683830,1772075446115,-162.380719,0.00016393,2]
[406683832,1772075446124,-1009.87450072,0.00018,2]
[406684090,1772075657786,-1000.0,0.00012879,2]
[406684091,1772075659052,-1000.0,0.00012879,2]
[406684092,1772075659420,-1000.0,0.00012879,2]
[406684093,1772075659842,-1000.0,0.00012879,2]
[406684094,1772075660280,-1000.0,0.00012879,2]
[406684095,1772075663081,1000.0,0.00013,2]
[406684096,1772075663102,1000.0,0.00013,2]
[406684097,1772075663129,1000.0,0.00013,2]
[406684098,1772075663152,1000.0,0.00013,2]
[406684099,1772075668413,-1000.0,0.00013,2]
[406684100,1772075837709,-1000.0,0.00012623,2]
[406684101,1772075838986,-1000.0,0.00012623,2]
[406684102,1772075840047,-1000.0,0.00012623,2]
[406684103,1772075840374,-1000.0,0.00012623,2]
[406684104,1772075840751,-1000.0,0.00012623,2]
[406684105,1772075841128,-1000.0,0.0001275,2]
[406684106,1772075841559,-1000.0,0.0001275,2]
[406684107,1772075841828,-1000.0,0.0001275,2]
[406684108,1772075842179,-1000.0,0.0001275,2]
[406684109,1772075842553,-1000.0,0.0001275,2]
[406684110,1772075842899,-300.0,0.00012877,2]
[406684111,1772075842922,-700.0,0.00012879,2]
[406684112,1772075843241,-1000.0,0.00012879,2]
[406684113,1772075843570,-1000.0,0.00012879,2]
[406684114,1772075844438,-1000.0,0.00012879,2]
[406684115,1772075844552,-1000.0,0.00012879,2]
[406684116,1772075844740,-300.0,0.00012879,2]
[406684117,1772075847261,700.0,0.00013,2]
[406684118,1772075847282,1000.0,0.00013,2]
[406684119,1772075849448,-1000.0,0.00013,2]
[406684120,1772075849997,-1000.0,0.00013,2]
[406684121,1772075850328,-1000.0,0.00013,2]
[406684122,1772075850680,-300.0,0.00013,2]
[406684123,1772075855779,700.0,0.00013,2]
[406684124,1772075855801,1000.0,0.00013,2]
[406684125,1772075859122,-1000.0,0.00013,2]
[406684126,1772075860548,-1000.0,0.00013,2]
[406684128,1772075892609,-1000.0,0.0001287,2]
[406684129,1772075895511,-1000.0,0.0001287,2]
[406684130,1772075895965,-1000.0,0.0001287,2]
[406684131,1772075896212,-1000.0,0.0001287,2]
[406684132,1772075896580,-1000.0,0.0001287,2]
[406684133,1772075896848,-1000.0,0.00013,2]
[406684134,1772075897145,-300.0,0.00013,2]
[406684135,1772075901069,700.0,0.0001287,2]
[406684136,1772075901090,1000.0,0.0001287,2]
[406684137,1772075901112,1000.0,0.0001287,2]
[406684138,1772075908895,-1000.0,0.0001287,2]
[406684139,1772075915062,-1000.0,0.0001287,2]
[406684140,1772075916323,-300.0,0.0001287,2]
[406684141,1772075916345,-700.0,0.00013,2]
[406684142,1772075917257,-64.01950095,0.00013,2]
[406684143,1772075926645,935.98049905,0.00013,2]
[406684144,1772075926668,1000.0,0.00013,2]
[406684145,1772075940806,-1000.0,0.00013,2]
[406684146,1772075942187,-1000.0,0.00013,2]
[406684147,1772075943100,-1000.0,0.00013,2]
[406684148,1772075944094,-64.01950095,0.00013,2]
[406684149,1772076005468,151.61,9.5e-05,2]
[406684150,1772076005904,151.61,9.6e-05,2]
[406684151,1772076006233,151.61,9.6e-05,2]
[406684152,1772076006617,151.61,9.7e-05,2]
[406684153,1772076007035,151.61,9.7e-05,2]
[406684154,1772076007513,151.61,9.8e-05,2]
[406684155,1772076008006,151.61,9.8e-05,2]
[406684156,1772076008464,151.61,9.9e-05,2]
[406684157,1772076009054,151.61,9.9e-05,2]
[406684158,1772076009478,151.61,0.0001,2]
[406684159,1772076010214,151.61,0.000101,2]
[406684160,1772076010884,151.61,0.000101,2]
[406684161,1772076011630,151.61,0.000102,2]
[406684162,1772076012036,151.61,0.000102,2]
[406684163,1772076012471,151.61,0.000103,2]
[406684164,1772076013031,151.61,0.000103,2]
[406684165,1772076013509,151.61,0.000104,2]
[406684166,1772076014170,151.61,0.000104,2]
[406684167,1772076096081,-1000.0,0.00012329,2]
[406684168,1772076098086,-1000.0,0.00012329,2]
[406684169,1772076099380,-1000.0,0.00012329,2]
[406684170,1772076100746,-63.49,0.00012329,2]
[406684171,1772076100952,-936.51,0.00012329,2]
[406684172,1772076102367,-1000.0,0.00012329,2]
[406684173,1772076108349,-616.39,0.00012329,2]
[406684174,1772076108371,-383.61,0.00012329,2]
[406684175,1772076110091,-1000.0,0.00012329,2]
[406684176,1772076111521,-743.81,0.00012329,2]
[406684177,1772076111545,-256.19,0.00012741,2]
[406684178,1772076113261,-1000.0,0.00012741,2]
[406684179,1772076114543,-1000.0,0.00012741,2]
[406684180,1772076115765,-1000.0,0.00012741,2]
[406684181,1772076117251,-1000.0,0.00012741,2]
[406684182,1772076122824,-271.96,0.000123,2]
[406684183,1772076122848,-728.04,0.00012329,2]
[406684184,1772076128352,-1000.0,0.00012329,2]
[406684185,1772076129486,-44.81,0.00012329,2]
[406684186,1772076129508,-955.19,0.00012329,2]
[406684187,1772076130765,-522.19,0.00012329,2]
[406684188,1772076130786,-67.3507682,0.00012741,2]
[406684189,1772076130807,-300.0,0.00012869,2]
[406684190,1772076130828,-110.4592318,0.0001287,2]
[406684191,1772076132041,-1000.0,0.0001287,2]
[406684192,1772076134879,-1000.0,0.0001287,2]
[406684193,1772076136479,-1000.0,0.0001287,2]
[406684194,1772076142342,-1000.0,0.00012329,2]
[406684195,1772076143901,-231.15,0.00012329,2]
[406684196,1772076143922,-768.85,0.00012741,2]
[406684197,1772076145181,-1000.0,0.00012741,2]
[406684198,1772076151112,-1000.0,0.00012329,2]
[406684199,1772076151687,-25.95,0.00012329,2]
[406684200,1772076151712,-974.05,0.00012741,2]
[406684201,1772076151818,-1000.0,0.00012741,2]
[406684202,1772076152217,-1000.0,0.00012741,2]
[406684203,1772076152622,-257.1,0.00012741,2]
[406684204,1772076152650,-742.9,0.0001287,2]
[406684205,1772076152901,-1000.0,0.0001287,2]
[406684206,1772076153338,-146.6407682,0.0001287,2]
[406684207,1772076153361,-602.0,0.0001287,2]
[406684208,1772076153384,-251.3592318,0.00012999,2]
[406684209,1772076153682,-948.6407682,0.00012999,2]
[406684210,1772076317987,-1000.0,0.00012318,2]
[406684211,1772076319763,-1000.0,0.00012318,2]
[406684212,1772076322236,-29.7240048,0.00012318,2]
[406684213,1772076322258,-267.16129821,0.00012323,2]
[406684214,1772076322280,-703.11469699,0.00012328,2]
[406684215,1772076323307,-496.88530301,0.00012328,2]
[406684216,1772076323329,-503.11469699,0.00012329,2]
[406684217,1772076324666,-351.84530301,0.00012329,2]
[406684218,1772076324690,-648.15469699,0.00012329,2]
[406684219,1772076324743,-64.31530301,0.00012329,2]
[406684220,1772076324763,-593.72,0.00012329,2]
[406684221,1772076324785,-300.0,0.00012638,2]
[406684222,1772076324806,-41.96469699,0.00012639,2]
[406684223,1772076325852,-1000.0,0.00012639,2]
[406684224,1772076327096,-1000.0,0.00012639,2]
[406684225,1772076328264,-1000.0,0.00012639,2]
[406684226,1772076329359,-1000.0,0.00012639,2]
[406684227,1772076330603,-1000.0,0.00012639,2]
[406684228,1772076331788,-1000.0,0.00012639,2]
[406684229,1772076333193,-1000.0,0.00012639,2]
[406684230,1772076334353,-1000.0,0.00012639,2]
[406684231,1772076335831,-1000.0,0.00012639,2]
[406684232,1772076337837,-1000.0,0.00012639,2]
[406684233,1772076338472,-1000.0,0.00012639,2]
[406684234,1772076339709,-1000.0,0.00012639,2]
[406684235,1772076341143,-886.68755311,0.00012639,2]
[406684236,1772076341164,-113.31244689,0.00012648,2]
[406684237,1772076342464,-1000.0,0.00012648,2]
[406684238,1772076343141,-49.91708051,0.00012648,2]
[406684239,1772076343162,-135.3618448,0.00013,2]
[406684240,1772076403093,-611.77522892,0.000129,2]
[406684241,1772076451131,-1567.48714133,0.000129,2]
[406684242,1772076531605,169.011539,6.814e-05,2]
[406684243,1772076531823,169.011539,8.208e-05,2]
[406684244,1772076532257,169.011539,9.602e-05,2]
[406684245,1772076532328,169.011539,0.00010995,2]
[406684246,1772076553080,-1372.0,0.00012265,2]
[406684247,1772076554090,-3628.0,0.00012265,2]
[406684248,1772076554112,-169.011539,0.00012389,2]
[406684249,1772076557074,-2072.9746332,0.00013072,2]
[406684250,1772076562085,-1656.36383243,0.00013072,2]
[406684251,1772076562110,-300.0,0.00013171,2]
[406684252,1772076562132,-166.58823823,0.00013273,2]
[406684253,1772076562152,-284.75874455,0.00013273,2]
[406684254,1772076562172,-500.0,0.00013273,2]
[406684255,1772076562192,-319.52563134,0.00013273,2]
[406684256,1772076562213,-500.0,0.00013273,2]
[406684257,1772076562234,-500.0,0.00013273,2]
[406684258,1772076562255,-500.0,0.00013273,2]
[406684259,1772076562276,-500.0,0.00013273,2]
[406684260,1772076562297,-500.0,0.00013273,2]
[406684261,1772076562316,-551.08165416,0.00013273,2]
[406684262,1772076562336,-500.0,0.00013273,2]
[406684263,1772076562356,-500.0,0.00013273,2]
[406684264,1772076562375,-500.0,0.00013273,2]
[406684265,1772076562396,-500.0,0.00013273,2]
[406684266,1772076562415,-500.0,0.00013273,2]
[406684267,1772076562434,-500.0,0.00013273,2]
[406684268,1772076562453,-471.94596658,0.00013273,2]
[406684269,1772076562472,-500.0,0.00013273,2]
[406684270,1772076562491,-500.0,0.00013273,2]
[406684271,1772076562510,-500.0,0.00013273,2]
[406684272,1772076562531,-500.0,0.00013273,2]
[406684273,1772076562549,-402.66966422,0.00013273,2]
[406684274,1772076562568,-500.0,0.00013273,2]
[406684275,1772076562587,-500.0,0.00013273,2]
[406684276,1772076562607,-335.12089178,0.00013273,2]
[406684277,1772076569140,-164.87910822,0.00013273,2]
[406684278,1772076569174,-500.0,0.00013273,2]
[406684279,1772076569197,-233.91653218,0.00013273,2]
[406684280,1772076569218,-500.0,0.00013273,2]
[406684281,1772076569242,-360.02772335,0.00013273,2]
[406684282,1772076571152,-139.97227665,0.00013273,2]
[406684283,1772076571177,-500.0,0.00013273,2]
[406684284,1772076571201,-500.0,0.00013273,2]
[406684285,1772076571224,-500.0,0.00013273,2]
[406684286,1772076571249,-500.0,0.00013273,2]
[406684287,1772076571274,-500.0,0.00013273,2]
[406684288,1772076571299,-526.82171063,0.00013273,2]
[406684289,1772076571323,-500.0,0.00013273,2]
[406684290,1772076571345,-160.34017309,0.00013273,2]
[406684291,1772076571367,-500.0,0.00013273,2]
[406684292,1772076571388,-263.04243068,0.00013273,2]
[406684293,1772076571410,-4585.30229885,0.00013273,2]
[406684294,1772076571433,-18207.40977703,0.00013552,2]
[406684295,1772076571453,-526.0,0.0001356,3]
[406684296,1772076571474,-1310.0,0.00013561,2]
[406684297,1772076571494,-150.0,0.00013673,2]
[406684298,1772076571514,-300.0,0.00013673,2]
[406684299,1772076571539,-500.0,0.00013698,2]
[406684300,1772076571558,-507.47767507,0.00013698,2]
[406684301,1772076571579,-500.0,0.00013698,2]
[406684302,1772076571600,-391.202463,0.00013698,2]
[406684303,1772076571621,-500.0,0.00013698,2]
[406684304,1772076571642,-500.0,0.00013698,3]
[406684305,1772076571662,-500.0,0.00013698,4]
[406684306,1772076571682,-155.0,0.00013698,2]
[406684307,1772076571704,-526.92992814,0.00013698,2]
[406684308,1772076571727,-282.36018156,0.00013698,2]
[406684309,1772076571747,-504.17501604,0.00013699,2]
[406684310,1772076571767,-160.91314934,0.00013699,2]
[406684311,1772076571787,-500.0,0.00013699,2]
[406684312,1772076571807,-500.0,0.00013699,2]
[406684313,1772076571827,-500.0,0.00013699,2]
[406684314,1772076571847,-500.56578962,0.00013699,2]
[406684315,1772076571867,-500.0,0.00013699,2]
[406684316,1772076571887,-500.0,0.00013699,2]
[406684317,1772076571913,-500.58635241,0.00013699,2]
[406684318,1772076571933,-500.82195521,0.00013699,2]
[406684319,1772076571953,-500.0,0.00013699,2]
[406684320,1772076571973,-501.37568957,0.00013699,2]
[406684321,1772076571993,-500.0,0.00013699,2]
[406684322,1772076572014,-630.69790789,0.00013699,2]
[406684323,1772076572035,-500.0,0.00013699,2]
[406684324,1772076572054,-161.33088549,0.00013699,2]
[406684325,1772076572074,-500.0,0.00013699,2]
[406684326,1772076572095,-500.0,0.00013699,2]
[406684327,1772076572116,-505.44305616,0.00013699,2]
[406684328,1772076572137,-592.53162647,0.00013699,2]
[406684329,1772076572157,-500.0,0.00013699,2]
[406684330,1772076572178,-500.0,0.00013699,2]
[406684331,1772076572198,-301.01845214,0.00013699,2]
[406684332,1772076572219,-194.54041969,0.00013699,2]
[406684333,1772076572240,-500.0,0.00013699,2]
[406684334,1772076572262,-500.0,0.00013699,2]
[406684335,1772076572283,-500.0,0.00013699,2]
[406684336,1772076572304,-500.0,0.00013699,2]
[406684337,1772076572324,-500.0,0.00013699,2]
[406684338,1772076572345,-503.28675363,0.00013699,2]
[406684339,1772076572366,-500.0,0.00013699,2]
[406684340,1772076572387,-500.0,0.00013699,2]
[406684341,1772076572407,-506.8243523,0.00013699,2]
[406684342,1772076572427,-500.0,0.00013699,2]
[406684343,1772076572449,-502.83695235,0.00013699,2]
[406684344,1772076572470,-500.0,0.00013699,2]
[406684345,1772076572492,-502.12710957,0.00013699,2]
[406684346,1772076572514,-500.0,0.00013699,2]
[406684347,1772076572535,-500.0,0.00013699,2]
[406684348,1772076572555,-500.0,0.00013699,2]
[406684349,1772076572576,-503.76987086,0.00013699,2]
[406684350,1772076572597,-376.16048105,0.00013699,2]
[406684351,1772076572618,-501.39510292,0.00013699,2]
[406684352,1772076572639,-500.0,0.00013699,5]
[406684353,1772076572660,-490.38,0.000137,2]
[406684354,1772076572682,-490.38,0.000137,2]
[406684355,1772076572705,-490.38,0.000137,2]
[406684356,1772076572732,-490.38,0.000137,2]
[406684357,1772076572755,-490.38,0.000137,2]
[406684358,1772076572778,-490.38,0.000137,2]
[406684359,1772076572799,-490.38,0.000137,2]
[406684360,1772076572821,-490.38,0.000137,2]
[406684361,1772076572842,-490.38,0.000137,2]
[406684362,1772076572863,-490.38,0.000137,2]
[406684363,1772076572885,-490.38,0.000137,2]
[406684364,1772076572907,-490.38,0.000137,2]
[406684365,1772076572929,-490.44,0.000137,2]
[406684366,1772076572951,-316.48427816,0.00013821,2]
[406684367,1772076572971,-1000.0,0.00013821,2]
[406684368,1772076572992,-1000.0,0.00013821,2]
[406684369,1772076573013,-1000.0,0.00013821,2]
[406684370,1772076573032,-1000.0,0.00013821,2]
[406684371,1772076573052,-1005.76665804,0.00013821,2]
[406684372,1772076573071,-1000.0,0.00013821,2]
[406684373,1772076573091,-281.3270787,0.00013821,2]
[406684374,1772076573112,-899.9098568,0.00013821,2]
[406684375,1772076573133,-1000.0,0.00013821,2]
[406684376,1772076573152,-1000.0,0.00013821,2]
[406684377,1772076573172,-1000.0,0.00013821,2]
[406684378,1772076573192,-1008.03343224,0.00013821,2]
[406684379,1772076573213,-1000.0,0.00013821,2]
[406684380,1772076573233,-1000.0,0.00013821,2]
[406684381,1772076573254,-502.89431935,0.00013821,2]
[406684382,1772076573276,-407.85449753,0.00013821,2]
[406684383,1772076573298,-210.41118423,0.00013821,2]
[406684384,1772076573319,-1000.0,0.00013821,2]
[406684385,1772076573340,-1000.0,0.00013821,2]
[406684386,1772076573362,-1000.0,0.00013821,2]
[406684387,1772076573384,-1000.0,0.00013821,2]
[406684388,1772076573406,-1000.0,0.00013821,2]
[406684389,1772076573429,-1000.0,0.00013821,2]
[406684390,1772076573452,-1000.0,0.00013821,2]
[406684391,1772076573477,-1386.74825397,0.00014175,2]
[406684392,1772076573671,-204.8324539,0.00014221,2]
[406684393,1772076573694,-600.0,0.00014221,2]
[406684394,1772076573717,-2884.772247,0.00014245,2]
[406684395,1772076573741,-539.825409,0.00014247,2]
[406684396,1772076573763,-501.25178226,0.00014247,2]
[406684397,1772076573784,-503.97203981,0.00014247,2]
[406684398,1772076573807,-1121.94832915,0.00014247,2]
[406684399,1772076573827,-1000.98665082,0.00014247,2]
[406684400,1772076573847,-1000.0,0.00014247,2]
[406684401,1772076573867,-1000.0,0.00014247,2]
[406684402,1772076573887,-1000.0,0.00014247,2]
[406684403,1772076573908,-505.80135247,0.00014247,2]
[406684404,1772076573929,-1000.0,0.00014247,2]
[406684405,1772076573953,-360.91419843,0.00014247,2]
[406684406,1772076573974,-1011.63240049,0.00014247,2]
[406684407,1772076573994,-199.61320858,0.00014247,2]
[406684408,1772076574015,-1003.98896467,0.00014247,2]
[406684409,1772076574037,-1000.0,0.00014247,2]
[406684410,1772076574060,-503.76436484,0.00014247,2]
[406684411,1772076574080,-1000.0,0.00014247,2]
[406684412,1772076574101,-1000.0,0.00014247,2]
[406684413,1772076574122,-1000.0,0.00014247,2]
[406684414,1772076574148,-1500.0,0.00014368,2]
[406684415,1772076574167,-500.58898421,0.00014368,2]
[406684416,1772076574187,-1500.0,0.00014368,2]
[406684417,1772076574208,-1478.5487444,0.00014368,2]
[406684418,1772076574228,-1501.71571213,0.00014368,2]
[406684419,1772076574249,-1500.0,0.00014368,2]
[406684420,1772076574271,-1500.0,0.00014368,2]
[406684421,1772076574291,-1500.0,0.00014368,2]
[406684422,1772076574312,-1500.0,0.00014368,2]
[406684423,1772076574332,-1003.91992404,0.00014368,2]
[406684424,1772076574353,-413.80928703,0.00014368,2]
[406684425,1772076574373,-961.02859815,0.00014368,2]
[406684426,1772076574395,-501.14559966,0.00014368,2]
[406684427,1772076574414,-1500.0,0.00014368,2]
[406684428,1772076574434,-1500.0,0.00014368,2]
[406684429,1772076574453,-1500.0,0.00014368,2]
[406684430,1772076574475,-420.0,0.00014442,2]
[406684431,1772076574495,-254.67307541,0.00014532,2]
[406684432,1772076574516,-643.6796934,0.00014603,2]
[406684433,1772076574540,-900.0,0.00014768,2]
[406684434,1772076574565,-502.97872303,0.00014795,2]
[406684435,1772076574588,-513.1244134,0.00014795,2]
[406684436,1772076574617,-773.17028323,0.00014795,2]
[406684437,1772076574639,-555.31039046,0.00014795,2]
[406684438,1772076574660,-614.41709127,0.00014795,2]
[406684439,1772076574680,-989.89592234,0.00014795,2]
[406684440,1772076574701,-1500.0,0.00014795,2]
[406684441,1772076574724,-1409.15167423,0.00014795,2]
[406684442,1772076574744,-697.17283883,0.0001482,2]
[406684443,1772076574769,-2730.37598669,0.00014879,2]
[406684444,1772076574790,-200.9253502,0.00014903,2]
[406684445,1772076574810,-641.84640255,0.00014916,2]
[406684446,1772076574831,-503.49206962,0.00014916,2]
[406684447,1772076574851,-2000.0,0.00014916,2]
[406684448,1772076574870,-2000.0,0.00014916,2]
[406684449,1772076574891,-1505.86326619,0.00014916,2]
[406684450,1772076574912,-1013.3921837,0.00014916,2]
[406684451,1772076574932,-2000.0,0.00014916,2]
[406684452,1772076574954,-1003.04492004,0.00014916,2]
[406684453,1772076574975,-508.7919259,0.00014916,2]
[406684454,1772076574997,-3729.3384656,0.00015111,2]
[406684455,1772076575018,-269.55029944,0.0001514,2]
[406684456,1772076575042,-1200.0,0.00015316,2]
[406684457,1772076575064,-2000.0,0.00015342,2]
[406684458,1772076575087,-150.0,0.00015425,2]
[406684459,1772076575109,-247.39,0.00015454,3]
[406684460,1772076575130,-742.17,0.00015454,3]
[406684461,1772076575154,-500.0,0.00015464,6]
[406684462,1772076575175,-886.78904825,0.00015464,2]
[406684463,1772076575198,-2500.0,0.00015464,2]
[406684464,1772076575220,-2500.0,0.00015464,2]
[406684465,1772076575242,-150.0,0.0001548,2]
[406684466,1772076575265,-250.62974222,0.00015535,2]
[406684467,1772076575288,-500.0,0.00015699,2]
[406684468,1772076575310,-500.0,0.00015699,2]
[406684469,1772076575333,-500.0,0.00015699,2]
[406684470,1772076575354,-6054.61012528,0.000157,2]
[406684471,1772076575375,-267.73,0.000157,7]
[406684472,1772076575398,-587.0,0.00015835,2]
[406684473,1772076575420,-176.65358506,0.00015864,2]
[406684474,1772076575447,-213.977555,0.0001589,2]
[406684475,1772076575470,-213.977555,0.0001589,2]
[406684476,1772076575491,-213.977555,0.0001589,2]
[406684477,1772076575512,-213.977555,0.0001589,2]
[406684478,1772076575538,-2500.0,0.0001589,2]
[406684479,1772076575562,-494.77,0.00016002,3]
[406684480,1772076575584,-3000.0,0.00016012,2]
[406684481,1772076575607,-3000.0,0.00016012,2]
[406684482,1772076575628,-151.0,0.00016032,2]
[406684483,1772076575650,-151.0,0.00016032,2]
[406684484,1772076575670,-151.0,0.00016032,2]
[406684485,1772076575691,-151.0,0.00016032,2]
[406684486,1772076575713,-151.0,0.00016032,2]
[406684487,1772076575738,-151.0,0.00016032,2]
[406684488,1772076575759,-151.0,0.00016032,2]
[406684489,1772076575784,-151.0,0.00016032,2]
[406684490,1772076575804,-151.0,0.00016032,2]
[406684491,1772076575826,-151.0,0.00016032,2]
[406684492,1772076575852,-151.0,0.00016032,2]
[406684493,1772076575873,-533.88981491,0.00016032,2]
[406684494,1772076575896,-250.0,0.00016032,2]
[406684495,1772076575924,-151.0,0.00016032,2]